[Event "FIDE Candidates Tournament 2022"]
[Site "Madrid"]
[Date "2022.06.30"]
[Round "11.3"]
[White "Radjabov, Teimour"]
[Black "Duda, Jan-Krzysztof"]
[Result "1/2-1/2"]
[ECO "A14"]
[WhiteElo "2753"]
[BlackElo "2750"]
[Annotator "TA"]
[PlyCount "66"]
[EventDate "2022.06.17"]
[EventType "tourn"]
[EventCountry "ESP"]
[SourceTitle "playchess.com"]
[Source "ChessBase"]
[SourceQuality "1"]
[TimeControl "40/7200:20/3600:900+30"]

{[%evp 19,66,8,6,7,32,14,18,4,16,6,4,7,16,12,16,13,11,11,11,12,17,17,14,8,11,5,20,0,0,0,0,0,0,0,0,0,0,0,0,0,0,0,0,0,0,0,0,0,0]} 1. c4 {[%emt 0:00:02]} Nf6 {[%emt 0:00:06]} 2. Nf3 {[%emt 0:00:04]} e6 {[%emt 0:00:05]} 3. b3 {[%emt 0:00:06]} d5 {[%emt 0:00:16]} 4. Bb2 {[%emt 0:00:06]} Be7 {[%emt 0:00:51]} 5. g3 {[%emt 0:00:17]} O-O {[%emt 0:00:14]} 6. Bg2 {[%emt 0:00:03]} b6 {[%emt 0:11:30]} 7. cxd5 {[%emt 0:00:18]} Nxd5 {[%emt 0:00:08]} 8. d4 {[%emt 0:00:57]} Bb7 {[%emt 0:00:27]} 9. O-O {[%emt 0:01:49]} c5 {[%emt 0:05:19]} 10. dxc5 {[%emt 0:05:58]} Bxc5 {[%emt 0:00:22]} 11. Nbd2 {[%emt 0:00:03] A14: English Opening: 1...e6 with b3 by White.} Nf6 {[%emt 0:05:43]} 12. a3 {[%emt 0:06:50]} a5 {[%emt 0:01:42] [#] Against b4. The position is equal.} 13. Nc4 $146 {[%emt 0:05:34]} ({Predecessor:} 13. Qc2 Nbd7 14. e3 Qe7 15. Nd4 Bxg2 16. Kxg2 Rac8 17. Qd3 Ne5 18. Qe2 Rfd8 19. f3 {½-½ (27) Heigermoser,R (2161)-Schindler,S (2165) Bayern 2019}) 13... Nbd7 {[%emt 0:01:09]} 14. Nfe5 {[%emt 0:03:57]} Bxg2 {[%emt 0:04:24]} 15. Kxg2 {[%emt 0:00:02]} b5 {[%emt 0:11:30]} 16. Nxd7 {[%emt 0:06:51]} (16. Nxa5 {feels hotter.} Rxa5 17. Nxd7 Nxd7 18. b4) 16... Qxd7 {[%emt 0:06:44]} (16... Nxd7 {looks sharper.} 17. Nxa5 Rxa5 18. b4 Ra4) 17. Qxd7 {[%emt 0:13:12]} Nxd7 {[%emt 0:00:18][%cal Bf6d7,Bd7c5,Bc5e4][%mdl 32] [#]} 18. Nxa5 {[%emt 0:01:33]} Rxa5 {[%emt 0:00:07]} 19. b4 {[%emt 0:00:01]} Ra6 {[%emt 0:01:21] aiming for ...Be7.} 20. bxc5 {[%emt 0:00:05]} Nxc5 {[%emt 0:00:05]} 21. Rab1 {[%emt 0:00:47]} Ne4 {[%emt 0:12:14] [#] ...Nd2 is the strong threat.} 22. Rfd1 {[%emt 0:01:19] Inhibits Nd2.} h6 {[%emt 0:03:25]} 23. Ba1 {[%emt 0:08:34]} Rxa3 {[%emt 0:01:01]} 24. Rxb5 {[%emt 0:00:05]} Nc3 {[%emt 0:00:10]} 25. Bxc3 {[%emt 0:00:04]} Rxc3 $11 {[%emt 0:00:04][%mdl 4096] Endgame KRR-KRR} 26. Rdb1 {[%emt 0:00:08]} g6 {[%emt 0:00:10]} 27. Rb8 {[%emt 0:00:05]} h5 {[%emt 0:00:06]} 28. h4 {[%emt 0:00:03]} Rxb8 {[%emt 0:00:04]} 29. Rxb8+ {[%emt 0:00:02]} Kg7 {[%emt 0:00:07]} 30. e3 {[%emt 0:00:03]} Rc2 {[%emt 0:00:05]} 31. Ra8 {[%emt 0:00:03]} Rc3 {[%emt 0:00:04]} 32. Rb8 {[%emt 0:00:03]} Rc2 {[%emt 0:00:05]} 33. Ra8 {[%emt 0:00:03]} Rc3 {[%emt 0:00:04] A balanced but interesting game.  Weighted Error Value: White=0.04 (flawless) /Black=0.03 (flawless)} 1/2-1/2

[Event "FIDE Candidates Tournament 2022"]
[Site "Madrid"]
[Date "2022.07.03"]
[Round "13.4"]
[White "Radjabov, Teimour"]
[Black "Caruana, Fabiano"]
[Result "1/2-1/2"]
[ECO "E04"]
[WhiteElo "2753"]
[BlackElo "2786"]
[Annotator "TA"]
[PlyCount "61"]
[EventDate "2022.06.17"]
[EventType "tourn"]
[EventCountry "ESP"]
[SourceTitle "playchess.com"]
[Source "ChessBase"]
[SourceQuality "1"]
[TimeControl "40/7200:20/3600:900+30"]

{[%evp 11,61,24,29,17,32,28,69,61,78,68,56,81,78,75,103,51,54,35,29,20,21,15,15,15,15,7,1,4,2,0,2,8,4,9,8,0,0,0,0,0,0,0,4,0,0,0,0,0,0,0,0,0]} 1. d4 {[%emt 0:00:02]} Nf6 {[%emt 0:00:04]} 2. c4 {[%emt 0:00:08]} e6 {[%emt 0:00:04]} 3. Nf3 {[%emt 0:00:16]} d5 {[%emt 0:00:07]} 4. g3 {[%emt 0:00:07]} dxc4 {[%emt 0:00:24]} 5. Bg2 {[%emt 0:00:21]} Bb4+ {[%emt 0:00:11]} 6. Bd2 {[%emt 0:01:15]} a5 {[%emt 0:00:50]} 7. Qc2 {[%emt 0:02:11] E04: Open Catalan: 5 Nf3.} O-O {[%emt 0:01:48]} 8. Qxc4 {[%emt 0:04:57]} b6 {[%emt 0:06:59]} 9. Bxb4 {[%emt 0:10:51] White is slightly better.} Ba6 {[%emt 0:00:16] [#]} 10. Qb3 {[%emt 0:00:04]} axb4 {[%emt 0:00:06]} 11. Qxb4 {[%emt 0:00:03]} c5 {[%emt 0:00:25]} 12. dxc5 {[%emt 0:07:12]} Nc6 {[%emt 0:00:32]} 13. Qd2 {[%emt 0:11:05]} (13. Qxb6 $16 Qd7 14. Qb3) 13... bxc5 $14 {[%emt 0:00:13]} 14. Qxd8 {[%emt 0:07:22]} Rfxd8 {[%emt 0:00:10]} 15. Nc3 {[%emt 0:00:05] [#]} Nd5 $146 {[%emt 0:00:19] The position is equal.} ({Predecessor:} 15... Rab8 16. b3 Nb4 17. O-O Nfd5 18. Na4 c4 19. Nc5 cxb3 20. Nxa6 Nxa6 21. axb3 Nc5 {½-½ (31) Gaehwiler,G (2414)-Miralles,G (2433) Switzerland 2019}) 16. Rc1 {[%emt 0:05:17]} Nxc3 {[%emt 0:02:37]} 17. Rxc3 {[%emt 0:02:26]} Rab8 {[%emt 0:00:16]} 18. b3 {[%emt 0:08:06]} Nb4 {[%emt 0:01:18]} 19. Nd2 {[%emt 0:09:27] Prevents c4. Black should prevent a3.} Nxa2 {[%emt 0:10:12]} 20. Rc2 {[%emt 0:06:19]} Nb4 {[%emt 0:00:10]} 21. Rxc5 {[%emt 0:00:05]} Rbc8 {[%emt 0:14:10]} 22. Rxc8 {[%emt 0:00:57]} Rxc8 {[%emt 0:00:33][%cal Rc8c1] [#]} 23. Nc4 {[%emt 0:01:13]} Bxc4 {[%emt 0:00:52]} 24. bxc4 {[%emt 0:01:22]} Rxc4 $11 {[%emt 0:00:07][%mdl 4096] Endgame KRB-KRN} 25. Kd2 {[%emt 0:02:52]} Rc2+ {[%emt 0:00:16]} 26. Ke3 {[%emt 0:00:12]} Rb2 {[%emt 0:00:16]} 27. f4 {[%emt 0:02:22]} Nc2+ {[%emt 0:01:36]} 28. Kd3 {[%emt 0:00:35] Kc3 is the strong threat.} Nb4+ {[%emt 0:00:06]} 29. Ke3 $1 {[%emt 0:00:06]} Nc2+ {[%emt 0:00:04]} 30. Kd3 {[%emt 0:00:04] Hoping for Kc3.} Nb4+ {[%emt 0:00:03]} 31. Ke3 $1 {[%emt 0:00:06] Weighted Error Value: White=0.06 (flawless) /Black=0.04 (flawless)} 1/2-1/2